bitfinex/quotes_BTCUSD_20251113
["timestamp","ask_amount","ask_price","bid_price","bid_amount"]
[1763056613517,0.55706534,100000.0,99999.0,81.36767347]
[1763056613753,0.55306534,100000.0,99999.0,81.36767347]
[1763056614152,0.55706534,100000.0,99999.0,81.36767347]
[1763056614924,0.527,100000.0,99999.0,81.36767347]
[1763056615131,0.547,100000.0,99999.0,81.36767347]
[1763056615536,0.545,100000.0,99999.0,81.36767347]
[1763056615940,0.547,100000.0,99999.0,81.36767347]
[1763056616144,0.525,100000.0,99999.0,81.36767347]
[1763056616552,0.511,100000.0,99999.0,81.36767347]
[1763056617007,0.511,100000.0,99999.0,81.36115978]
[1763056617367,0.54106549,100000.0,99999.0,81.36115978]
[1763056618188,0.5807691,100000.0,99999.0,81.36115978]
[1763056618395,0.5807691,100000.0,99999.0,81.33110517]
[1763056618596,0.5807691,100000.0,99999.0,81.24693083]
[1763056618804,0.5807691,100000.0,99999.0,81.21687622]
[1763056619005,0.5807691,100000.0,99999.0,81.18682161]
[1763056619273,0.5797691,100000.0,99999.0,81.15676189]
[1763056619405,0.5777691,100000.0,99999.0,81.12670217]
[1763056619606,0.5797691,100000.0,99999.0,81.09664245]
[1763056619833,0.5827691,100000.0,99999.0,81.06658273]
[1763056620033,0.5807691,100000.0,99999.0,81.03652301]
[1763056620235,0.5837691,100000.0,99999.0,81.00646329]
[1763056620435,0.5837691,100000.0,99999.0,80.97640357]
[1763056620640,0.5837691,100000.0,99999.0,80.94634385]
[1763056620827,2.5837691,100000.0,99999.0,80.88930658]
[1763056621009,2.5807691,100000.0,99999.0,80.85924686]
[1763056621268,2.5777691,100000.0,99999.0,79.63168954]
[1763056621433,2.6872691,100000.0,99999.0,79.59639954]
[1763056621665,2.6912691,100000.0,99999.0,79.56633982]
[1763056621845,2.6912691,100000.0,99999.0,79.5362801]
[1763056622040,2.6912691,100000.0,99999.0,79.50622038]
[1763056622247,2.7152691,100000.0,99999.0,78.65385021]
[1763056622454,2.72549976,100000.0,99999.0,78.25660826]
[1763056622649,2.72149976,100000.0,99999.0,78.22653974]
[1763056622881,2.72549976,100000.0,99999.0,78.19647122]
[1763056623083,2.72549976,100000.0,99999.0,78.1424027]
[1763056623239,2.72549976,100000.0,99999.0,78.11233418]
[1763056623240,2.72149976,100000.0,99999.0,78.11233418]
[1763056623443,2.72549976,100000.0,99999.0,78.08226566]
[1763056623772,2.72549976,100000.0,99999.0,78.05219714]
[1763056623930,2.72549976,100000.0,99999.0,78.02212862]
[1763056624134,2.72549976,100000.0,99999.0,77.9920601]
[1763056624337,2.72549976,100000.0,99999.0,77.96199158]
[1763056624533,2.61999976,100000.0,99999.0,77.93192306]
[1763056624732,2.61999976,100000.0,99999.0,77.87178602]
[1763056624939,2.61999976,100000.0,99999.0,76.94402859]
[1763056625139,2.61999976,100000.0,99999.0,76.52278664]
[1763056625340,2.96999976,100000.0,99999.0,75.62506334]
[1763056625564,3.03122809,100000.0,99999.0,74.65956064]
[1763056625772,4.97975406,100000.0,99999.0,73.4034402]
[1763056625970,5.47975406,100000.0,99999.0,72.17074555]
[1763056626180,5.52551809,100000.0,99999.0,69.28329566]
[1763056626384,5.4550591,100000.0,99999.0,68.64865187]
[1763056626603,5.51705489,100000.0,99999.0,67.51695898]
[1763056626851,5.51705489,100000.0,99999.0,67.23612723]
[1763056627019,5.51705489,100000.0,99999.0,67.17976598]
[1763056627226,5.51705489,100000.0,99999.0,66.24860542]
[1763056627424,5.57001468,100000.0,99999.0,66.15503472]
[1763056627627,5.47329086,100000.0,99999.0,66.12496009]
[1763056627828,5.52405489,100000.0,99999.0,65.899731]
[1763056628047,5.51705489,100000.0,99999.0,64.80725204]
[1763056628257,5.57001746,100000.0,99999.0,64.60515844]
[1763056628468,5.51705489,100000.0,99999.0,64.54500918]
[1763056628671,5.51705489,100000.0,99999.0,63.7837094]
[1763056628887,5.51105489,100000.0,99999.0,63.75363477]
[1763056629097,5.51105489,100000.0,99999.0,63.52840273]
[1763056629315,5.51105489,100000.0,99999.0,62.63687005]
[1763056629517,5.56398264,100000.0,99999.0,62.60679247]
[1763056629725,5.56998255,100000.0,99999.0,62.57671489]
[1763056629936,5.51105489,100000.0,99999.0,62.54140522]
[1763056630147,5.51105489,100000.0,99999.0,62.31617318]
[1763056630358,5.11629086,100000.0,99999.0,61.46658642]
[1763056630573,4.80829086,100000.0,99999.0,61.46658642]
[1763056630782,4.30829086,100000.0,99999.0,61.46658642]
[1763056631231,2.31700086,100000.0,99999.0,61.46658642]
[1763056631621,2.30800086,100000.0,99999.0,61.46658642]
[1763056631841,0.80000086,100000.0,99999.0,61.46658642]
[1763056632039,0.77500086,100000.0,99999.0,61.46658642]
[1763056632257,0.7747691,100000.0,99999.0,60.60722076]
[1763056632509,0.7797691,100000.0,99999.0,60.60722076]
[1763056632713,0.7747691,100000.0,99999.0,60.60722076]
[1763056632931,2.80422783,100000.0,99999.0,60.60722076]
[1763056633139,2.80822783,100000.0,99999.0,60.60722076]
[1763056634429,0.80822783,100000.0,99999.0,60.60722076]
[1763056634859,2.80822783,100000.0,99999.0,60.60722076]
[1763056635491,2.8239211,100000.0,99999.0,60.60722076]
[1763056636095,2.8239211,100000.0,99999.0,60.60070474]
[1763056640240,2.8239211,100000.0,99999.0,60.54656782]
[1763056640407,2.8239211,100000.0,99999.0,60.46536092]
[1763056640599,2.8189211,100000.0,99999.0,60.46536092]
[1763056640802,2.8149211,100000.0,99999.0,60.46536092]
[1763056641040,2.8149211,100000.0,99999.0,60.22086092]
[1763056641041,2.8259211,100000.0,99999.0,60.22086092]
[1763056641498,2.8259211,100000.0,99999.0,59.56791729]
[1763056641689,2.8259211,100000.0,99999.0,58.30297945]
[1763056641690,2.82622617,100000.0,99999.0,58.30297945]
[1763056641870,2.8419207,100000.0,99999.0,55.40660104]
[1763056642026,2.99818473,100000.0,99999.0,55.37652723]
[1763056642227,2.93172617,100000.0,99999.0,52.8985994]
[1763056642444,2.93572617,100000.0,99999.0,47.26800134]
[1763056642825,3.41372617,100000.0,99999.0,47.23792753]
[1763056643042,3.40772617,100000.0,99999.0,47.17320761]
[1763056643252,3.40772617,100000.0,99999.0,46.60652879]
[1763056643454,3.41572617,100000.0,99999.0,43.88579094]
[1763056643687,3.40972617,100000.0,99999.0,43.57681959]
[1763056643894,3.40172617,100000.0,99999.0,42.95482892]
[1763056644132,3.44772617,100000.0,99999.0,42.55758168]
[1763056644313,3.44772617,100000.0,99999.0,42.08239525]
[1763056644504,3.44772617,100000.0,99999.0,42.05232144]
[1763056644716,3.44772617,100000.0,99999.0,42.02224763]
[1763056644842,3.44772617,100000.0,99999.0,41.56684137]
[1763056645046,3.44772617,100000.0,99999.0,41.13291086]
[1763056645262,1.83902617,100000.0,99999.0,38.6470693]
[1763056645512,1.8547234,100000.0,99999.0,38.62380897]
[1763056645732,1.83903013,100000.0,99999.0,38.19649042]
[1763056646075,1.83903013,100000.0,99999.0,37.77257451]
[1763056646295,1.82058112,100000.0,99999.0,37.77257451]
[1763056646546,1.83898774,100000.0,99999.0,37.38921138]
[1763056646747,1.82528774,100000.0,99999.0,37.01291138]
[1763056646894,1.82528774,100000.0,99999.0,36.61731835]
[1763056647075,1.82498267,100000.0,99999.0,36.61731835]
[1763056647277,1.71948704,100000.0,99999.0,36.61731835]
[1763056647476,1.71948704,100000.0,99999.0,36.24651614]
[1763056647926,1.71948704,100000.0,99999.0,35.79938615]
[1763056648141,1.80373244,100000.0,99999.0,35.01533871]
[1763056648357,3.75892414,100000.0,99999.0,32.4248224]
[1763056648569,3.70293335,100000.0,99999.0,32.4248224]
[1763056648784,3.21063104,100000.0,99999.0,32.4248224]
[1763056648998,3.20763104,100000.0,99999.0,32.4248224]
[1763056649210,3.20963104,100000.0,99999.0,32.4248224]
[1763056649615,3.22086239,100000.0,99999.0,32.4248224]
[1763056649904,3.21186239,100000.0,99999.0,32.4248224]
[1763056650105,3.21286239,100000.0,99999.0,32.4248224]
[1763056650325,3.21786239,100000.0,99999.0,32.4248224]
[1763056650501,3.21786239,100000.0,99999.0,32.02392495]
[1763056650715,3.20216516,100000.0,99999.0,32.02392495]
[1763056650920,3.20216516,100000.0,99999.0,31.62303314]
[1763056651357,3.18646747,100000.0,99999.0,31.62303314]
[1763056651594,3.17746747,100000.0,99999.0,31.62303314]
[1763056651805,3.16421716,100000.0,99999.0,31.62303314]
[1763056652028,3.17746747,100000.0,99999.0,31.62303314]
[1763056652235,3.17746747,100000.0,99999.0,30.39443776]
[1763056652447,3.17747921,100000.0,99999.0,29.16316732]
[1763056652650,3.17747921,100000.0,99999.0,28.33919324]
[1763056652862,3.17747921,100000.0,99999.0,28.31892341]
[1763056653070,3.15847921,100000.0,99999.0,28.31892341]
[1763056653701,3.15847921,100000.0,99999.0,23.31892341]
[1763056653915,3.18647921,100000.0,99999.0,22.86655566]
[1763056654132,2.83585675,100000.0,99999.0,22.81568916]
[1763056654346,2.83585675,100000.0,99999.0,21.40846228]
[1763056654561,2.83585675,100000.0,99999.0,15.81676785]
[1763056654766,2.83585675,100000.0,99999.0,15.73552905]
[1763056654767,3.4570541,100000.0,99999.0,15.73552905]
[1763056654977,3.44135675,100000.0,99999.0,15.24043236]
[1763056655185,3.33585675,100000.0,99999.0,15.24043236]
[1763056655394,3.32885675,100000.0,99999.0,15.24043236]
[1763056655598,3.33185675,100000.0,99999.0,15.24043236]
[1763056656326,3.32385675,100000.0,99999.0,13.90052095]
[1763056656597,3.33785675,100000.0,99999.0,11.92764603]
[1763056656812,3.32985675,100000.0,99999.0,11.92764603]
[1763056657467,3.32985675,100000.0,99999.0,11.4459049]
[1763056657714,3.32985675,100000.0,99999.0,10.41155845]
[1763056657934,3.32985675,100000.0,99999.0,10.27157627]
[1763056658146,3.34755477,100000.0,99999.0,10.27157627]
[1763056658367,3.35455477,100000.0,99999.0,10.21523666]
[1763056658798,3.33955477,100000.0,99999.0,10.21523666]
[1763056659013,3.46105477,100000.0,99999.0,10.21523666]
[1763056659227,3.46105477,100000.0,99999.0,9.52141517]
[1763056659436,3.46105477,100000.0,99999.0,9.32074838]
[1763056659652,3.46105477,100000.0,99999.0,8.97555437]
[1763056659884,1.74365477,100000.0,99999.0,3.75238892]
[1763056660078,1.75065477,100000.0,99999.0,3.63268636]
[1763056660300,0.36679843,99888.0,99856.0,0.20028691]
[1763056660538,0.01841421,99887.0,99855.0,0.2002903]
[1763056660760,0.36679843,99886.0,99862.0,0.20027593]
[1763056660981,0.24586443,99875.0,99867.0,0.20026515]
[1763056661200,0.2424557,99875.0,99874.0,0.06214]
[1763056661430,0.2424557,99875.0,99870.0,0.323]
[1763056662323,0.22920539,99875.0,99870.0,0.323]
[1763056662539,0.22920539,99875.0,99858.0,0.20028427]
[1763056662762,0.22920151,99890.0,99860.0,0.01001401]
[1763056663038,0.4,99940.0,99920.0,0.323]
[1763056663248,0.2,99940.0,99900.0,0.01001001]
[1763056663457,0.2,99940.0,99920.0,0.323]
[1763056663660,0.21,99950.0,99920.0,0.323]
[1763056663661,0.41,99950.0,99939.0,0.00269]
[1763056663884,0.02122488,99949.0,99939.0,0.00269]
[1763056664317,0.02122488,99949.0,99939.0,0.00282943]
[1763056664521,0.02122488,99949.0,99939.0,0.00013943]
[1763056665273,0.02322488,99949.0,99939.0,0.00013943]
[1763056665687,0.02622488,99949.0,99939.0,0.00013943]
[1763056667030,0.02622488,99949.0,99948.0,0.00269]
[1763056667269,0.005,99949.0,99948.0,0.00269]
[1763056667609,0.005,99949.0,99948.0,0.00399388]
[1763056668041,0.002,99949.0,99948.0,0.00399388]
[1763056668282,0.02122488,99959.0,99948.0,0.00399388]
[1763056668542,0.005,99949.0,99948.0,0.00269]
[1763056668796,0.002,99949.0,99948.0,0.00269]
[1763056669068,0.00015715,99950.0,99939.0,0.00013943]
[1763056669310,0.00015715,99950.0,99949.0,0.00269]
[1763056669551,0.00015715,99950.0,99949.0,0.0039683]
[1763056670975,0.00315715,99950.0,99949.0,0.0012783]
[1763056671187,0.00015715,99950.0,99949.0,0.0012783]
[1763056671582,0.00315715,99950.0,99949.0,0.0012783]
[1763056673014,0.00315715,99950.0,99949.0,0.0039683]
[1763056673960,0.00315715,99950.0,99949.0,0.0012783]
[1763056674649,0.04968181,99950.0,99949.0,0.0012783]
[1763056674789,0.02315715,99950.0,99949.0,0.0012783]
[1763056674976,0.06812785,99950.0,99949.0,0.0012783]
[1763056675451,0.02654042,99951.0,99949.0,0.0012783]
[1763056675612,0.22,99950.0,99939.0,0.00013943]
[1763056676468,0.4,99950.0,99939.0,0.00013943]
[1763056676667,0.01,99940.0,99939.0,0.00013943]
[1763056676897,0.02,99940.0,99939.0,0.00013943]
[1763056677737,0.09065,99958.0,99950.0,4.577]
[1763056678134,0.06056,99951.0,99950.0,4.577]
[1763056678767,1.55305735,99951.0,99950.0,4.577]
[1763056679621,1.56875478,99951.0,99950.0,4.577]
[1763056680019,1.56975478,99951.0,99950.0,4.577]
[1763056680267,1.56875478,99951.0,99950.0,4.577]
[1763056680408,1.55305743,99951.0,99950.0,4.577]
[1763056680608,1.55905743,99951.0,99950.0,4.578]
[1763056680808,1.55605743,99951.0,99950.0,4.578]
[1763056681009,1.55605743,99951.0,99950.0,4.577]
[1763056681010,1.55305743,99951.0,99950.0,4.577]
[1763056681274,1.55605743,99951.0,99950.0,4.57825272]
[1763056681477,1.56855743,99951.0,99950.0,4.57925272]
[1763056682580,1.56855743,99951.0,99950.0,4.56014651]
[1763056682783,1.54986,99951.0,99950.0,4.56014651]
[1763056682958,1.55286,99951.0,99950.0,4.56014651]
[1763056683160,1.54986,99951.0,99950.0,4.55914651]
[1763056683319,1.54686,99951.0,99950.0,4.55914651]
[1763056683522,1.56855795,99951.0,99950.0,4.55914651]
[1763056683727,1.58425588,99951.0,99950.0,4.55914651]
[1763056683930,1.58125588,99951.0,99950.0,4.55914651]
[1763056684165,1.58525588,99951.0,99950.0,4.55914651]
[1763056684698,1.57575588,99951.0,99950.0,4.55914651]
[1763056685685,0.09895588,99951.0,99950.0,4.55914651]
[1763056686552,0.09895588,99951.0,99950.0,4.05914651]
[1763056686773,1.57575588,99951.0,99950.0,4.05914651]
[1763056687727,1.61537172,99951.0,99950.0,4.05914651]
[1763056689718,1.59967379,99951.0,99950.0,4.05914651]
[1763056690864,0.12287379,99951.0,99950.0,4.05914651]
[1763056691567,0.10717584,99951.0,99950.0,4.05914651]
[1763056691803,0.10717584,99951.0,99950.0,3.00125272]
[1763056692016,0.04661584,99951.0,99950.0,3.00125272]
[1763056692467,0.03961584,99951.0,99950.0,3.00125272]
[1763056692684,0.0214087,99951.0,99950.0,3.00125272]
[1763056692923,0.0865387,99951.0,99950.0,3.00125272]
[1763056693129,0.10574584,99951.0,99950.0,3.00125272]
[1763056693354,0.10274584,99951.0,99950.0,3.00125272]
[1763056693616,0.04161584,99951.0,99950.0,3.00125272]
[1763056693807,0.04061584,99951.0,99950.0,3.00125272]
[1763056694031,0.03961584,99951.0,99950.0,3.00125272]
[1763056694274,0.04061584,99951.0,99950.0,3.00125272]
[1763056695210,0.03961584,99951.0,99950.0,3.00125272]
[1763056695431,0.0204087,99951.0,99950.0,3.00125272]
[1763056695658,0.0845387,99951.0,99950.0,3.00125272]
[1763056695884,0.10274584,99951.0,99950.0,3.00125272]
[1763056698396,0.10274584,99951.0,99950.0,3.09470272]
[1763056698397,0.03961584,99951.0,99950.0,3.09470272]
[1763056698630,0.0204087,99951.0,99950.0,3.09470272]
[1763056699283,0.04161584,99951.0,99950.0,3.00125272]
[1763056699493,0.03961584,99951.0,99950.0,3.00125272]
[1763056699698,0.0194087,99951.0,99950.0,3.00125272]
[1763056700344,0.0184087,99951.0,99950.0,3.00125272]
[1763056700557,0.0815387,99951.0,99950.0,3.00125272]
[1763056700841,0.42574584,99951.0,99950.0,3.00125272]
[1763056701488,0.47879937,99951.0,99950.0,3.00125272]
[1763056701690,0.42074584,99951.0,99950.0,3.00125272]
[1763056701908,0.42074584,99951.0,99950.0,0.00125272]
[1763056702516,0.42274584,99951.0,99950.0,0.00125272]
[1763056704135,0.03661584,99951.0,99950.0,0.00125272]
[1763056704337,0.0154087,99951.0,99950.0,0.00125272]
[1763056706574,0.0785387,99951.0,99950.0,0.00125272]
[1763056706777,0.11393,99951.0,99950.0,0.00125272]
[1763056706983,0.13513714,99951.0,99950.0,0.00125272]
[1763056707636,0.09974584,99951.0,99950.0,0.00125272]
[1763056710272,0.323,99949.0,99939.0,0.00013943]
[1763056710481,0.00969,99940.0,99939.0,0.00013943]
[1763056710927,0.04507232,99940.0,99939.0,0.00013943]
[1763056711142,0.40497776,99940.0,99939.0,0.00013943]
[1763056711550,0.36959544,99940.0,99939.0,0.00013943]
[1763056711769,0.37059544,99940.0,99939.0,0.00013943]
[1763056712209,0.37259544,99940.0,99939.0,0.00013943]
[1763056712652,0.02,99920.0,99903.0,0.01867942]
[1763056712862,0.02,99920.0,99903.0,0.01876332]
[1763056713069,0.04527,99923.0,99903.0,0.01876332]
[1763056713293,0.04527,99923.0,99904.0,0.06546]
[1763056713507,0.02123197,99922.0,99904.0,0.06546]
[1763056713723,0.01843193,99921.0,99904.0,0.06546]
[1763056713946,0.01843193,99920.0,99904.0,0.06546]
[1763056714172,0.02123197,99924.0,99904.0,0.06546]
[1763056714173,0.01843193,99919.0,99904.0,0.06546]
[1763056714398,0.01843193,99918.0,99904.0,0.06546]
[1763056714637,0.01843193,99917.0,99904.0,0.06546]
[1763056714873,0.01843193,99916.0,99904.0,0.06546]
[1763056715098,0.01843193,99915.0,99904.0,0.06546]
[1763056715322,0.01843193,99914.0,99904.0,0.06546]
[1763056715545,0.01843193,99924.0,99904.0,0.06546]
[1763056715752,0.01843193,99923.0,99904.0,0.06546]
[1763056715967,0.01843193,99922.0,99904.0,0.06546]
[1763056716195,0.01843193,99921.0,99904.0,0.06546]
[1763056716400,0.01843193,99920.0,99904.0,0.06546]
[1763056716609,0.02123618,99925.0,99920.0,0.00076736]
[1763056716822,0.01843294,99924.0,99904.0,0.06546]
[1763056717027,0.01843294,99923.0,99904.0,0.06546]
[1763056717263,0.01843294,99922.0,99904.0,0.06546]
[1763056717467,0.01843294,99921.0,99904.0,0.06546]
[1763056717677,0.01843294,99920.0,99904.0,0.06546]
[1763056717913,0.01843294,99919.0,99904.0,0.06546]
[1763056718119,0.01843294,99918.0,99904.0,0.06546]
[1763056718328,0.01843294,99917.0,99904.0,0.06546]
[1763056718539,0.01843294,99916.0,99904.0,0.06546]
[1763056718738,0.01843294,99915.0,99904.0,0.06546]
[1763056718948,0.01843294,99914.0,99904.0,0.06546]
[1763056719153,0.01843294,99913.0,99903.0,0.01876332]
[1763056719354,0.01843294,99912.0,99903.0,0.01876332]
[1763056719564,0.01843294,99911.0,99903.0,0.01876332]
[1763056719777,0.01843294,99910.0,99903.0,0.01876332]
[1763056719996,0.01843294,99909.0,99903.0,8.39e-05]
[1763056722757,0.04527,99904.0,99903.0,8.39e-05]
[1763056722966,0.06370294,99904.0,99903.0,8.39e-05]
[1763056723188,0.12596294,99904.0,99903.0,8.39e-05]
[1763056724275,0.06370294,99904.0,99903.0,8.39e-05]
[1763056724683,0.06370294,99904.0,99903.0,0.00128627]
[1763056725079,0.44896294,99904.0,99903.0,0.00128627]
[1763056725934,0.47018134,99904.0,99903.0,0.00128627]
[1763056727209,0.44996294,99904.0,99903.0,0.00128627]
[1763056727638,0.47117622,99904.0,99903.0,0.00128627]
[1763056727867,0.44996294,99904.0,99903.0,0.00128627]
[1763056729128,0.03538801,99921.0,99903.0,0.00128627]
[1763056729337,0.04341874,99921.0,99903.0,8.39e-05]
[1763056729765,1.55552896,99918.0,99903.0,8.39e-05]
[1763056730007,2.0,99919.0,99903.0,8.39e-05]
[1763056730228,0.03009454,99920.0,99903.0,8.39e-05]
[1763056730229,0.04341874,99916.0,99903.0,8.39e-05]
[1763056730443,0.04341874,99914.0,99903.0,8.39e-05]
[1763056730662,2.0,99913.0,99903.0,8.39e-05]
[1763056732397,0.04341874,99914.0,99903.0,8.39e-05]
[1763056732620,0.04341874,99912.0,99903.0,8.39e-05]
[1763056732836,0.04541874,99913.0,99903.0,8.39e-05]
[1763056733084,0.04541874,99913.0,99903.0,3.9e-06]
[1763056733085,2.0,99908.0,99903.0,3.9e-06]
[1763056733504,0.04341874,99906.0,99903.0,3.9e-06]
[1763056734154,2.36641874,99904.0,99903.0,3.9e-06]
[1763056734570,2.39681294,99904.0,99903.0,3.9e-06]
[1763056735223,0.003,99906.0,99903.0,3.9e-06]
[1763056736089,0.003,99904.0,99903.0,3.9e-06]
[1763056736295,0.04641874,99904.0,99903.0,3.9e-06]
[1763056736519,0.04341874,99904.0,99903.0,3.9e-06]
[1763056736732,0.04541874,99904.0,99903.0,3.9e-06]
[1763056736950,0.04341874,99904.0,99903.0,3.9e-06]
[1763056737159,0.04541874,99904.0,99903.0,3.9e-06]
[1763056737577,0.04841874,99904.0,99903.0,3.9e-06]
[1763056737781,0.06412214,99904.0,99903.0,3.9e-06]
[1763056737997,0.0207034,99904.0,99903.0,3.9e-06]
[1763056738427,0.005,99904.0,99903.0,3.9e-06]
[1763056739141,0.002,99904.0,99903.0,3.9e-06]
[1763056739644,0.001,99904.0,99903.0,3.9e-06]
[1763056739872,0.002,99904.0,99903.0,3.9e-06]
[1763056740118,0.002,99904.0,99903.0,0.00120627]
[1763056741227,0.01940484,99904.0,99903.0,0.00120627]
[1763056741658,0.40602531,99904.0,99903.0,0.00120627]
[1763056741868,0.10422704,99904.0,99903.0,0.00120627]
[1763056742939,0.10722704,99904.0,99903.0,0.00120627]
[1763056744037,0.02,99870.0,99869.0,0.002]
[1763056744253,0.10410432,99870.0,99869.0,0.002]
[1763056744476,0.40710432,99870.0,99869.0,0.002]
[1763056745337,0.34127907,99870.0,99869.0,0.002]
[1763056745558,0.39077907,99870.0,99869.0,0.002]
[1763056746002,0.39177907,99870.0,99869.0,0.002]
[1763056747179,0.39277907,99870.0,99869.0,0.002]
[1763056748444,0.39277907,99870.0,99854.0,0.002]
[1763056748448,0.62398755,99870.0,99854.0,0.002]
[1763056748654,0.0624,99855.0,99854.0,0.002]
[1763056751037,0.0634,99855.0,99854.0,0.002]
[1763056751442,0.0634,99855.0,99854.0,0.00325448]
[1763056752465,0.16247714,99859.0,99854.0,0.00325448]
[1763056752666,0.00023,99855.0,99854.0,0.002]
[1763056753673,0.04766384,99855.0,99854.0,0.002]
[1763056754734,0.37066384,99855.0,99854.0,0.002]
[1763056754978,0.38016384,99855.0,99854.0,0.002]
[1763056755185,0.323,99854.0,99850.0,0.0007]
[1763056755394,0.02646517,99852.0,99850.0,0.0007]
[1763056755623,0.02117039,99852.0,99850.0,0.0007]
[1763056755855,0.02846517,99855.0,99850.0,0.0007]
[1763056756069,0.00022,99851.0,99850.0,0.0007]
[1763056757308,0.01857797,99851.0,99850.0,0.0007]
[1763056757933,0.05662414,99851.0,99850.0,0.0007]
[1763056758164,0.05132936,99851.0,99850.0,0.0007]
[1763056758369,0.39757771,99851.0,99850.0,0.00205694]
[1763056758573,0.43445878,99851.0,99850.0,0.00205694]
[1763056758836,2.4187481,99851.0,99850.0,0.00205694]
[1763056759036,2.4307481,99851.0,99850.0,0.00205694]
[1763056759234,2.4297481,99851.0,99850.0,0.00205694]
[1763056759441,2.42972899,99851.0,99850.0,0.00205694]
[1763056759653,2.43072899,99851.0,99850.0,0.00205694]
[1763056759863,2.4359668,99851.0,99850.0,0.00205694]
[1763056760269,2.44119555,99851.0,99850.0,0.00205694]
[1763056760682,0.04341874,99847.0,99839.0,0.002]
[1763056760893,0.00022,99840.0,99839.0,0.002]
[1763056761117,0.0619776,99840.0,99839.0,0.002]
[1763056761320,0.08716405,99840.0,99839.0,0.002]
[1763056761673,0.08716405,99840.0,99839.0,0.00228173]
[1763056761880,0.90516405,99840.0,99839.0,0.00228173]
[1763056762104,0.94496892,99840.0,99839.0,0.00228173]
[1763056762539,0.323,99839.0,99808.0,0.04922]
[1763056762765,0.02322,99825.0,99808.0,0.04922]
[1763056763884,0.01,99829.0,99808.0,0.04922]
[1763056764888,0.323,99839.0,99808.0,0.04922]
[1763056764889,0.02,99830.0,99825.0,0.04822]
[1763056765160,0.04117039,99830.0,99825.0,0.04822]
[1763056765410,0.02217039,99829.0,99825.0,0.04822]
[1763056766141,0.02117039,99829.0,99825.0,0.04822]
[1763056766584,0.001,99829.0,99825.0,0.04822]
[1763056767069,0.02,99830.0,99815.0,0.09764]
[1763056767314,0.02,99830.0,99821.0,0.04922]
[1763056767564,0.02422,99825.0,99807.0,0.021]
[1763056768034,0.04,99820.0,99807.0,0.021]
[1763056768973,0.02,99820.0,99811.0,0.04922]
[1763056769207,0.02,99820.0,99807.0,0.021]
[1763056769208,0.04,99820.0,99807.0,0.021]
[1763056769443,0.02110742,99819.0,99807.0,0.021]
[1763056769843,0.02422,99811.0,99807.0,0.021]
[1763056771321,0.04532486,99811.0,99807.0,0.021]
[1763056771563,0.02,99810.0,99807.0,0.021]
[1763056771825,0.04110486,99810.0,99807.0,0.021]
[1763056772088,0.02,99810.0,99807.0,0.021]
[1763056772770,0.02013935,99810.0,99807.0,0.021]
[1763056773177,0.00013935,99810.0,99807.0,0.021]
[1763056773622,0.02113935,99810.0,99807.0,0.021]
[1763056773837,0.04113935,99810.0,99807.0,0.021]
[1763056774046,0.01801145,99809.0,99807.0,0.021]
[1763056774260,0.04113935,99810.0,99807.0,0.021]
[1763056774477,0.04113935,99810.0,99808.0,0.00079427]
[1763056774718,0.02112949,99809.0,99807.0,0.021]
[1763056774946,0.04113935,99810.0,99807.0,0.021]
[1763056775172,0.04113935,99810.0,99807.0,0.01605]
[1763056775355,0.02013503,99809.0,99807.0,0.01605]
[1763056775489,0.02113935,99810.0,99807.0,0.01605]
[1763056775701,0.04113935,99810.0,99807.0,0.01605]
[1763056776543,0.02422,99808.0,99807.0,0.01605]
[1763056777363,0.02417992,99808.0,99807.0,0.01605]
[1763056777803,0.04022992,99808.0,99807.0,0.00626132]
[1763056778427,0.04022992,99808.0,99805.0,0.00014]
[1763056778724,0.00154,99806.0,99805.0,0.00014]
[1763056779123,0.01725884,99806.0,99805.0,0.00014]
[1763056779386,0.03330884,99806.0,99805.0,0.00014]
[1763056779593,0.03236515,99806.0,99805.0,0.00014]
[1763056780186,0.03176884,99806.0,99805.0,0.00014]
[1763056780713,0.05495884,99806.0,99805.0,0.00101116]
[1763056782208,0.08145017,99806.0,99805.0,0.00101116]
[1763056783311,0.05495884,99806.0,99805.0,0.00101116]
[1763056784060,0.09034685,99806.0,99805.0,0.00101116]
[1763056784280,0.09034685,99806.0,99792.0,0.00739483]
[1763056784281,0.00154,99803.0,99792.0,0.00739483]
[1763056784480,0.02298,99801.0,99792.0,0.00739483]
[1763056784888,0.05310473,99801.0,99792.0,0.00739483]
[1763056786271,0.07154251,99801.0,99800.0,0.10134485]
[1763056787325,0.09279265,99801.0,99800.0,0.10134485]
[1763056787535,0.46886375,99801.0,99800.0,0.10134485]
[1763056787748,0.42579265,99801.0,99800.0,0.10134485]
[1763056787953,0.42579265,99801.0,99800.0,0.09155451]
[1763056788583,0.00175,99793.0,99780.0,0.002]
[1763056788801,0.02276,99781.0,99780.0,0.002]
[1763056789028,0.07154144,99781.0,99780.0,0.002]
[1763056789212,0.03968792,99781.0,99780.0,0.002]
[1763056789418,0.05381333,99781.0,99780.0,0.002]
[1763056789635,0.01843778,99781.0,99780.0,0.002]
[1763056789851,0.03968792,99781.0,99780.0,0.0988]
[1763056790071,0.03968792,99781.0,99780.0,0.0938]
[1763056790072,0.04497077,99781.0,99780.0,0.0938]
[1763056790337,0.02,99760.0,99750.0,0.00617975]
[1763056790546,0.001,99781.0,99780.0,0.10767]
[1763056790754,0.001,99781.0,99780.0,0.04138]
[1763056790755,0.01941925,99781.0,99780.0,0.04138]
[1763056791596,0.01855855,99781.0,99780.0,0.04138]
[1763056792020,0.03977749,99781.0,99780.0,0.04138]
[1763056792233,0.01855855,99781.0,99780.0,0.04138]
[1763056792916,0.01855855,99781.0,99770.0,0.0968]
[1763056793123,0.03841925,99780.0,99770.0,0.0968]
[1763056793334,0.03963819,99779.0,99770.0,0.0968]
[1763056793545,0.01841925,99778.0,99770.0,0.0968]
[1763056793775,0.01841925,99777.0,99770.0,0.0968]
[1763056793983,0.01841925,99776.0,99771.0,0.20045726]
[1763056794213,0.01841925,99775.0,99770.0,0.0968]
[1763056794410,0.01841925,99774.0,99770.0,0.0968]
[1763056794614,0.0001393,99781.0,99770.0,0.0968]
[1763056794615,0.0001393,99781.0,99779.0,0.05582]
[1763056794831,0.01841753,99780.0,99779.0,0.01028]
[1763056795042,0.01841753,99780.0,99779.0,0.21072297]
[1763056795255,0.01841753,99780.0,99779.0,0.05369874]
[1763056796530,0.01841753,99780.0,99779.0,0.25414171]
[1763056796974,0.01841753,99780.0,99779.0,0.05369874]
[1763056798238,0.01941753,99780.0,99779.0,0.05369874]
[1763056798450,0.01941753,99780.0,99779.0,0.01028]
[1763056799073,0.01841753,99780.0,99779.0,0.01028]
[1763056800612,0.01841753,99780.0,99779.0,0.01128]
[1763056801236,0.0184351,99780.0,99779.0,0.00028]